bitfinex/quotes_SOLUSD_20240813
["timestamp","ask_amount","ask_price","bid_price","bid_amount"]
[1723508107029,5.4623,146.46,146.39,13.6619]
[1723508107246,5.4623,146.46,146.41,5.464]
[1723508107406,5.4623,146.46,146.36,15.8091]
[1723508107407,5.4638,146.42,146.37,5.4652]
[1723508107608,20.25098,146.47,146.36,13.6646]
[1723508107832,0.12549,146.45,146.38,13.6624]
[1723508108240,0.12549,146.45,146.29,2.60942279]
[1723508108241,0.12549,146.43,146.35,13.6658]
[1723508108430,5.4645,146.4,146.35,19.132]
[1723508108632,5.4645,146.4,146.3,45.7137]
[1723508108633,5.4652,146.38,146.34,5.4666]
[1723508108814,5.4652,146.38,146.33,5.467]
[1723508109350,5.4652,146.38,146.34,5.4666]
[1723508109635,5.59039,146.39,146.34,5.4666]
[1723508109850,45.12549,146.38,146.32,5.4674]
[1723508110033,0.12549,146.37,146.32,5.4674]
[1723508110332,45.12549,146.38,146.31,13.6689]
[1723508110552,0.12549,146.42,146.33,13.667]
[1723508110846,0.37647,146.42,146.33,13.667]
[1723508111031,5.4648,146.39,146.33,13.667]
[1723508111432,5.59069,146.38,146.33,13.667]
[1723508111644,50.59109,146.37,146.33,13.667]
[1723508111940,45.12549,146.37,146.33,13.667]
[1723508112442,45.0,146.37,146.33,13.667]
[1723508112937,45.0,146.37,146.33,19.134]
[1723508113134,45.0,146.37,146.34,5.4666]
[1723508113322,45.12549,146.38,146.34,5.4666]
[1723508113754,50.59069,146.38,146.34,5.4666]
[1723508113918,45.0,146.38,146.34,5.4666]
[1723508114447,5.4656,146.37,146.33,19.134]
[1723508114628,50.4653,146.38,146.33,19.134]
[1723508115225,0.12549,146.37,146.3,13.6702]
[1723508115422,5.466,146.36,146.3,13.6702]
[1723508115636,5.71658,146.37,146.3,13.6702]
[1723508115834,0.25098,146.37,146.32,13.6681]
[1723508116037,5.466,146.36,146.32,13.6681]
[1723508116214,5.4685,146.3,146.25,5.4699]
[1723508116415,5.4679,146.31,146.26,5.4696]
[1723508117216,1.83428323,146.34,146.27,5.4692]
[1723508117217,5.4674,146.32,146.27,5.4692]
[1723508117419,45.37647,146.35,146.23,6.2315]
[1723508117420,45.12549,146.35,146.24,27.352]
[1723508117616,50.59189,146.35,146.31,5.4677]
[1723508118029,21.463,146.36,146.32,5.4674]
[1723508118341,22.41249,146.4,146.34,5.4665]
[1723508118529,22.41249,146.4,146.31,13.6688]
[1723508118530,5.59069,146.38,146.33,5.4669]
[1723508118724,0.12549,146.37,146.33,5.4669]
[1723508118919,0.12549,146.36,146.31,13.6688]
[1723508119121,0.37647,146.36,146.28,13.672]
[1723508119329,5.4671,146.33,146.28,19.1409]
[1723508119547,46.75088158,146.41,146.28,27.3446]
[1723508119754,0.12549,146.39,146.28,27.3446]
[1723508119923,22.287,146.4,146.28,27.3446]
[1723508120321,22.287,146.4,146.36,5.4658]
[1723508121052,27.7515,146.4,146.36,5.4658]
[1723508121956,5.4634,146.43,146.38,5.4649]
[1723508122123,6.4847,146.44,146.39,5.4647]
[1723508122124,28.0697,146.44,146.39,5.4647]
[1723508122445,22.6067,146.44,146.39,13.6617]
[1723508122651,22.6067,146.44,146.31,6.1888]
[1723508122832,5.4656,146.37,146.32,19.1354]
[1723508123146,5.4664,146.35,146.3,5.4681]
[1723508123539,5.4664,146.35,146.28,13.6715]
[1723508123540,20.0,146.37,146.28,13.6715]
[1723508123737,0.12549,146.34,146.28,13.6715]
[1723508123943,22.6067,146.35,146.28,13.6715]
[1723508124331,28.073,146.35,146.3,5.4681]
[1723508124545,0.12549,146.34,146.28,13.6715]
[1723508124752,45.25098,146.34,146.28,13.6715]
[1723508124955,16.122,146.35,146.3,13.67]
[1723508125135,5.4656,146.37,146.32,5.4671]
[1723508125323,5.4656,146.37,146.28,27.3445]
[1723508125324,22.2382,146.39,146.28,27.3445]
[1723508125529,22.2382,146.39,146.36,5.4659]
[1723508125733,15.7722,146.39,146.36,5.4659]
[1723508125937,5.4647,146.4,146.35,5.4662]
[1723508126226,5.4647,146.4,146.36,5.4659]
[1723508126427,23.1755,146.43,146.39,5.4645]
[1723508126731,28.6389,146.43,146.39,5.4645]
[1723508127052,5.463,146.44,146.4,5.4643]
[1723508127263,36.8306,146.47,146.4,5.4643]
[1723508127264,23.1755,146.47,146.41,6.82990009]
[1723508127429,5.4629,146.45,146.4,13.6607]
[1723508127631,5.4629,146.45,146.4,19.125]
[1723508127822,23.1755,146.47,146.4,13.6607]
[1723508128045,6.5171,146.5,146.42,13.6588]
[1723508128375,11.9779,146.5,146.45,5.4625]
[1723508128849,5.4611,146.49,146.44,13.6569]
[1723508129071,5.4611,146.49,146.44,19.1198]
[1723508129352,6.5171,146.5,146.44,13.6569]
[1723508129548,16.6584,146.52,146.46,5.4621]
[1723508129549,5.4603,146.51,146.46,5.4621]
[1723508129725,5.4603,146.51,146.46,6.82741505]
[1723508130131,5.4603,146.51,146.46,5.4621]
[1723508130333,22.1184,146.52,146.47,5.4618]
[1723508130756,5.4614,146.49,146.44,19.1195]
[1723508130958,5.4611,146.49,146.44,19.1195]
[1723508131293,20.0,146.5,146.41,13.6599]
[1723508131554,5.4611,146.49,146.44,5.4628]
[1723508131939,16.6584,146.52,146.4,27.3218]
[1723508132129,16.6584,146.52,146.42,39.07]
[1723508132461,16.6584,146.52,146.48,5.4613]
[1723508132685,5.4596,146.53,146.48,5.4613]
[1723508132894,11.808,146.54,146.49,6.82625469]
[1723508133187,20.6827,146.56,146.51,5.4603]
[1723508133686,5.4589,146.55,146.5,5.4606]
[1723508134283,5.4592,146.54,146.49,19.1131]
[1723508134466,5.4596,146.53,146.49,13.6521]
[1723508134774,5.4593,146.54,146.49,19.1131]
[1723508134961,5.4593,146.54,146.5,5.4606]
[1723508135159,20.6827,146.56,146.49,13.6521]
[1723508135558,20.6827,146.56,146.44,33.4873]
[1723508135559,11.8066,146.58,146.53,5.4595]
[1723508135957,18.95294175,146.61,146.53,5.4595]
[1723508135958,21.7954,146.61,146.56,5.4584]
[1723508136159,16.3387,146.61,146.51,39.07]
[1723508136406,6.2832605,146.64,146.59,5.4573]
[1723508136564,5.4577,146.59,146.54,5.4591]
[1723508136903,14.4670605,146.64,146.54,13.6479]
[1723508137055,5.4569,146.61,146.56,5.4584]
[1723508137390,5.4566,146.61,146.57,5.4581]
[1723508137571,5.4565,146.62,146.57,5.4581]
[1723508137884,5.4567,146.61,146.56,19.104]
[1723508138358,5.4563,146.62,146.57,5.458]
[1723508138553,1.70528013,146.62,146.53,13.6488]
[1723508138801,5.4573,146.6,146.54,5.4589]
[1723508138992,5.4573,146.6,146.53,13.6488]
[1723508139210,50.4563,146.62,146.57,5.458]
[1723508139359,5.4563,146.62,146.57,5.458]
[1723508139558,0.8276605,146.64,146.52,27.42469]
[1723508139559,20.0,146.63,146.52,40.9489]
[1723508139758,5.4593,146.54,146.49,6.5629]
[1723508139985,59.07,146.62,146.49,6.5629]
[1723508140379,59.07,146.62,146.53,5.4595]
[1723508140699,13.6427,146.6,146.5,13.6513]
[1723508140989,5.457,146.6,146.55,5.4587]
[1723508141197,50.4567,146.61,146.56,5.4585]
[1723508141380,5.4567,146.61,146.56,5.4585]
[1723508141688,5.4563,146.62,146.55,13.6466]
[1723508141901,5.4559,146.63,146.57,13.6445]
[1723508142068,0.8276605,146.64,146.58,1.36397408]
[1723508142264,0.8276605,146.64,146.61,5.4563]
[1723508142487,0.8276605,146.64,146.62,1.36360201]
[1723508143294,0.8276605,146.64,146.58,52.7142]
[1723508143484,0.8276605,146.64,146.57,6.3983]
[1723508143677,0.8276605,146.64,146.57,5.458]
[1723508143881,5.4574,146.59,146.55,13.647]
[1723508144197,0.8276605,146.64,146.55,13.647]
[1723508144198,5.4562,146.62,146.58,5.4577]
[1723508144765,5.4562,146.62,146.57,5.458]
[1723508145510,0.12549,146.63,146.53,6.3983]
[1723508145668,5.4577,146.58,146.53,6.3983]
[1723508146010,0.25098,146.63,146.52,13.6496]
[1723508146011,6.68719,146.61,146.52,13.6496]
[1723508146308,15.8802,146.62,146.52,27.2997]
[1723508146498,0.8276605,146.64,146.52,27.2997]
[1723508146499,0.12549,146.63,146.56,13.6456]
[1723508146673,5.4569,146.61,146.56,13.6456]
[1723508146862,0.8276605,146.64,146.56,13.6456]
[1723508147298,5.456,146.63,146.58,5.4574]
[1723508147503,5.456,146.63,146.59,5.4573]
[1723508147671,6.2831605,146.64,146.59,5.4573]
[1723508148382,6.2831605,146.64,146.58,13.6438]
[1723508148585,0.8276605,146.64,146.6,5.4569]
[1723508148777,0.8276605,146.64,146.61,6.82045166]
[1723508148977,0.8276605,146.64,146.62,5.4562]
[1723508149398,0.8276605,146.64,146.56,27.2919]
[1723508149399,0.8276605,146.64,146.57,13.6452]
[1723508149597,5.456,146.63,146.59,5.4573]
[1723508149768,0.8276605,146.64,146.61,5.4563]
[1723508150163,0.8276605,146.64,146.6,13.6425]
[1723508150371,0.8276605,146.64,146.59,5.4572]
[1723508150590,0.8276605,146.64,146.58,0.25098]
[1723508150771,0.8276605,146.64,146.6,0.12549]
[1723508150980,0.8276605,146.64,146.59,0.12549]
[1723508150981,0.8276605,146.64,146.61,13.6408]
[1723508151185,0.8276605,146.64,146.63,5.4559]
[1723508151373,0.8276605,146.64,146.63,6.81945592]
[1723508151669,0.8276605,146.64,146.63,6.94483133]
[1723508151873,0.8276605,146.64,146.63,5.4559]
[1723508152408,0.8276605,146.64,146.63,5.58139]
[1723508152616,20.0,146.81,146.63,5.58139]
[1723508152617,5.4518,146.74,146.69,5.4536]
[1723508152898,15.7345,146.77,146.73,5.4521]
[1723508152899,21.1852,146.77,146.73,5.4521]
[1723508153204,6.1115,146.78,146.68,39.19549]
[1723508153401,0.8276605,146.79,146.74,5.4515]
[1723508153703,5.4503,146.78,146.73,19.0817]
[1723508154486,0.8276605,146.79,146.7,13.6329]
[1723508154690,1.70363188,146.78,146.7,13.6329]
[1723508154885,0.8276605,146.79,146.7,13.6329]
[1723508155068,0.25098,146.78,146.7,13.6329]
[1723508155494,20.8276605,146.79,146.7,13.6329]
[1723508155814,5.4521,146.74,146.7,13.6329]
[1723508156273,5.4521,146.74,146.67,6.5911]
[1723508156274,20.8276605,146.79,146.72,13.6308]
[1723508156606,0.8276605,146.79,146.72,13.6308]
[1723508156780,5.4504,146.78,146.72,13.6308]
[1723508156977,5.4504,146.78,146.74,5.4517]
[1723508157286,0.8276605,146.79,146.74,13.6289]
[1723508157484,0.8276605,146.79,146.75,1.48787939]
[1723508157679,6.2776605,146.79,146.74,19.0803]
[1723508157884,6.2776605,146.79,146.75,5.4513]
[1723508158192,0.8276605,146.79,146.76,5.451]
[1723508158397,0.8276605,146.79,146.76,13.6271]
[1723508158587,0.8276605,146.79,146.77,1.48779641]
[1723508158786,0.8276605,146.79,146.76,13.6271]
[1723508159100,0.8276605,146.79,146.75,5.4511]
[1723508159402,0.8276605,146.79,146.7,52.7029]
[1723508159571,0.8276605,146.79,146.7,13.6329]
[1723508160004,5.4513,146.76,146.71,5.4526]
[1723508160312,0.12549,146.76,146.66,13.6365]
[1723508160602,5.4532,146.71,146.66,13.6365]
[1723508161282,5.454,146.68,146.63,13.6394]
[1723508161479,5.454,146.68,146.63,19.095]
[1723508161900,5.4544,146.67,146.63,13.6394]
[1723508162083,5.4549,146.66,146.61,5.4566]
[1723508162290,5.4553,146.65,146.6,19.0995]
[1723508162601,13.88398,146.71,146.64,5.4554]
[1723508162602,5.4539,146.69,146.64,5.4554]
[1723508162803,6.93505394,146.74,146.62,13.6399]
[1723508162804,20.56485394,146.74,146.62,13.6399]
[1723508162987,20.56485394,146.74,146.63,1.36336195]
[1723508162988,45.12549,146.73,146.63,1.36336195]
[1723508163185,45.0,146.73,146.66,13.6364]
[1723508163383,28.9589,146.77,146.66,13.6364]
[1723508163622,65.0,146.76,146.67,0.12549]
[1723508163814,5.4533,146.7,146.66,13.6364]
[1723508163986,5.4531,146.71,146.66,5.4545]
[1723508164192,5.4526,146.72,146.61,28.64595841]
[1723508164392,5.4526,146.72,146.62,46.95]
[1723508164593,15.332,146.77,146.62,46.95]
[1723508164594,5.4521,146.74,146.69,5.4534]
[1723508164809,5.4521,146.74,146.63,7.86543649]
[1723508164810,15.332,146.77,146.71,13.6317]
[1723508164978,5.4511,146.76,146.71,19.0845]
[1723508165177,5.4515,146.75,146.71,19.0845]
[1723508165372,15.332,146.77,146.72,1.36280316]
[1723508165785,5.4504,146.78,146.73,5.70288]
[1723508165982,0.8276605,146.79,146.73,13.88068]
[1723508166274,0.8276605,146.79,146.73,19.33248]
[1723508166575,0.8276605,146.79,146.72,5.4523]
[1723508166776,6.2778605,146.79,146.73,0.12549]
[1723508166987,0.8276605,146.79,146.75,5.4514]
[1723508167374,0.8276605,146.79,146.76,1.36242219]
[1723508167580,0.8276605,146.79,146.76,5.451]
[1723508167888,0.8276605,146.79,146.7,13.6329]
[1723508168083,0.8276605,146.79,146.71,0.12549]
[1723508168280,14.4531605,146.79,146.7,19.086]
[1723508168505,14.4531605,146.79,146.69,5.4536]
[1723508168826,5.4507,146.77,146.72,5.4524]
[1723508169275,5.4513,146.76,146.71,19.0841]
[1723508169679,5.4503,146.78,146.73,5.4521]
[1723508169892,0.8276605,146.79,146.73,13.6299]
[1723508170135,0.8276605,146.79,146.7,0.12549]
[1723508170304,0.8276605,146.79,146.7,0.25098]
[1723508170502,0.8276605,146.79,146.69,13.6334]
[1723508170725,5.4511,146.76,146.71,5.4526]
[1723508170903,5.4508,146.77,146.72,5.4525]
[1723508171215,5.4504,146.78,146.73,5.57759]
[1723508171429,5.4503,146.78,146.74,5.4517]
[1723508171731,5.4503,146.78,146.73,19.20719]
[1723508173097,0.12549,146.78,146.68,5.4538]
[1723508173410,5.4522,146.73,146.68,5.4538]
[1723508173600,5.4535,146.7,146.65,5.4548]
[1723508174021,5.4532,146.71,146.65,5.4548]
[1723508174225,5.4532,146.71,146.64,13.6387]
[1723508174746,15.8557,146.73,146.66,13.6364]
[1723508175106,21.3079,146.73,146.68,5.4539]
[1723508175302,15.8557,146.73,146.66,13.6364]
[1723508175634,13.6339,146.7,146.6,13.6422]
[1723508175809,5.4533,146.7,146.65,5.455]
[1723508176135,0.12549,146.72,146.64,13.6383]
[1723508176434,0.12549,146.72,146.6,5.4567]
[1723508176435,5.4554,146.65,146.6,5.4567]
[1723508176636,46.95,146.69,146.6,13.6418]
[1723508176932,5.4539,146.69,146.57,28.65388921]
[1723508177133,5.4528,146.72,146.61,27.2828]
[1723508177306,5.4528,146.72,146.67,5.4543]
[1723508177837,15.8557,146.73,146.66,13.6362]
[1723508178329,5.4534,146.7,146.66,13.6362]
[1723508178537,5.453,146.71,146.66,19.0909]
[1723508179819,15.8557,146.73,146.66,13.6362]
[1723508180033,15.8557,146.73,146.67,0.25098]
[1723508180430,15.8557,146.73,146.67,1.61404506]
[1723508180839,5.4515,146.75,146.7,5.4532]
[1723508181039,5.4515,146.75,146.71,1.3628681]
[1723508181248,15.5863,146.77,146.69,5.4536]
[1723508181402,15.5863,146.77,146.68,13.6342]
[1723508181604,5.4539,146.69,146.65,13.6378]
[1723508181807,5.4539,146.69,146.65,19.0929]
[1723508182131,5.4529,146.71,146.66,5.4547]
[1723508182523,21.62618323,146.77,146.62,19.0967]
[1723508182524,5.4544,146.67,146.62,19.0967]
[1723508183131,13.6318,146.72,146.62,13.6406]
[1723508183132,5.4549,146.66,146.62,13.6406]
[1723508183439,5.4552,146.65,146.6,5.4569]
[1723508183729,5.4552,146.65,146.58,13.6438]
[1723508183730,5.4559,146.63,146.58,19.1015]
[1723508183921,0.12549,146.66,146.56,5.4582]
[1723508184129,47.20718148,146.66,146.55,19.1057]
[1723508184313,5.4573,146.59,146.55,13.6469]
[1723508184513,0.12549,146.63,146.48,45.5636]
[1723508184721,5.4588,146.56,146.51,5.4603]
[1723508184908,5.4591,146.55,146.49,13.6527]
[1723508185129,5.4585,146.56,146.51,5.4603]
[1723508186019,6.5149,146.6,146.51,13.6503]
[1723508186219,11.9722,146.6,146.55,5.4588]
[1723508186421,11.9722,146.6,146.49,27.3043]
[1723508186422,5.4574,146.59,146.54,5.4592]
[1723508187014,15.6201,146.62,146.55,15.01090811]
[1723508187227,15.6201,146.62,146.58,5.4577]
[1723508187726,21.0764,146.62,146.58,5.4577]
[1723508187934,5.457,146.61,146.56,0.12549]
[1723508188125,5.457,146.61,146.56,5.58379]
[1723508188646,21.0764,146.62,146.57,5.4581]
[1723508189543,5.4567,146.61,146.56,5.58389]
[1723508190613,0.12549,146.61,146.54,5.4589]
[1723508190919,5.4582,146.57,146.52,19.1097]
[1723508191723,5.4578,146.58,146.53,5.4596]
[1723508191918,5.457,146.6,146.55,5.4588]
[1723508192656,5.4566,146.61,146.56,5.4583]
[1723508193236,5.4574,146.59,146.54,13.6476]
[1723508193453,15.6201,146.62,146.49,27.3051]
[1723508193454,0.12549,146.6,146.51,13.6505]
[1723508193728,2.08217301,146.6,146.48,13.6533]
[1723508193960,5.4592,146.54,146.5,5.4606]
[1723508194130,13.644,146.59,146.48,13.6533]
[1723508194131,5.4596,146.53,146.48,19.1147]
[1723508194339,5.4603,146.52,146.47,5.4617]
[1723508194562,0.12549,146.53,146.42,13.659]
[1723508194857,0.12549,146.51,146.42,13.659]
[1723508195036,5.462,146.47,146.42,19.1224]
[1723508195242,5.4615,146.48,146.43,5.4633]
[1723508195458,1.83227841,146.51,146.42,19.1226]
[1723508195459,5.4619,146.47,146.42,19.1226]
[1723508195831,5.4619,146.47,146.43,5.4633]
[1723508196144,5.4615,146.48,146.43,5.4633]
[1723508196934,5.4608,146.5,146.45,5.4622]
[1723508197149,0.12549,146.52,146.44,13.6566]
[1723508197464,5.4604,146.51,146.46,5.4619]
[1723508197752,5.4609,146.5,146.45,5.4625]
[1723508197963,5.4611,146.49,146.45,5.4625]
[1723508198147,5.4611,146.49,146.44,13.6566]
[1723508198636,45.12549,146.53,146.44,13.6566]
[1723508198833,70.1442,146.54,146.48,5.4614]
[1723508198834,5.4603,146.52,146.48,5.4614]
[1723508199034,5.4603,146.52,146.49,1.36507096]
[1723508199241,0.12549,146.53,146.46,13.655]
[1723508199441,5.46,146.52,146.47,5.4618]
[1723508199661,5.4604,146.51,146.46,19.1171]
[1723508199838,5.4607,146.5,146.46,13.655]
[1723508200354,20.0,146.52,146.43,19.121]
[1723508200651,23.0842,146.54,146.42,27.3183]
[1723508200864,45.12549,146.53,146.42,27.3183]
[1723508201175,23.0842,146.54,146.47,13.6542]
[1723508201327,16.4478,146.54,146.51,5.4602]
[1723508201656,5.4589,146.55,146.5,5.4604]
[1723508201856,16.0814,146.58,146.49,13.652]
[1723508202031,16.0814,146.58,146.48,5.4614]
[1723508202032,5.4596,146.53,146.48,5.4614]
[1723508202238,5.4601,146.52,146.46,13.6551]
[1723508202557,5.4601,146.52,146.46,19.1172]
[1723508202761,13.648,146.55,146.46,13.6551]
[1723508202939,45.25098,146.54,146.46,13.6551]
[1723508203137,45.25098,146.54,146.39,15.0896]
[1723508203138,15.9754,146.51,146.43,13.6579]
[1723508203361,15.9754,146.51,146.43,19.1209]
[1723508203362,5.4617,146.48,146.43,19.1209]
[1723508204864,5.4608,146.5,146.45,5.4625]
[1723508205060,21.4358,146.51,146.46,5.4622]
[1723508205248,5.4608,146.5,146.45,5.4625]
[1723508205437,5.4611,146.49,146.44,5.4629]
[1723508205642,5.4607,146.5,146.45,5.4625]
[1723508206061,0.12549,146.5,146.4,13.6607]
[1723508206239,5.4625,146.46,146.41,5.4637]
[1723508206745,6.3293,146.49,146.42,13.6588]
[1723508206937,11.7904,146.49,146.44,5.4627]
[1723508207363,45.0,146.5,146.44,13.657]
[1723508207777,0.25098,146.49,146.41,13.66]
[1723508207975,5.4629,146.45,146.4,5.4642]
[1723508208279,0.25098,146.49,146.38,40.9872]
[1723508208460,0.25098,146.48,146.4,13.6608]
[1723508208657,5.71308,146.47,146.42,5.4637]
[1723508208857,45.0,146.46,146.42,5.4637]
[1723508209279,50.4622,146.46,146.41,5.464]
[1723508209469,5.4622,146.46,146.42,13.6589]
[1723508209670,5.4619,146.47,146.42,19.1226]
[1723508209860,45.0,146.46,146.42,19.1226]
[1723508210578,5.58699,146.48,146.43,5.4633]
[1723508210783,50.4618,146.47,146.42,19.1225]
[1723508211154,5.4622,146.46,146.42,13.6589]
[1723508211482,50.4619,146.47,146.42,19.1225]
[1723508211683,45.0,146.47,146.42,19.1225]
[1723508211977,45.0,146.47,146.39,13.6615]
[1723508211978,5.71328,146.46,146.39,13.6615]
[1723508212165,5.4626,146.45,146.39,13.6615]
[1723508212369,5.71318,146.46,146.41,5.4639]
[1723508212567,50.4619,146.47,146.42,5.4637]
[1723508213171,0.12549,146.5,146.43,13.658]
[1723508213382,5.4619,146.47,146.43,13.658]
[1723508215266,45.12549,146.46,146.4,13.6608]
[1723508215473,5.4626,146.45,146.4,19.1249]
[1723508216067,0.12549,146.46,146.41,5.464]
[1723508216068,5.58779,146.46,146.41,5.464]
[1723508216404,5.4632,146.44,146.4,13.6608]
[1723508216755,47.18549,146.48,146.4,13.6608]
[1723508216987,5.4615,146.48,146.43,5.463]
[1723508217195,50.461,146.5,146.45,5.4625]
[1723508217683,5.4615,146.48,146.44,13.6569]
[1723508217884,45.0,146.5,146.42,5.4633]
[1723508217885,5.462,146.47,146.42,5.4633]
[1723508218068,5.4615,146.48,146.41,13.6597]
[1723508218472,5.58659,146.49,146.44,5.4629]
[1723508218775,5.4612,146.49,146.44,5.4629]
[1723508218956,15.9754,146.51,146.43,19.1208]
[1723508218957,5.4617,146.48,146.43,19.1208]
[1723508219156,5.4636,146.43,146.38,5.4651]
[1723508219374,5.4637,146.42,146.37,19.1291]
[1723508219583,7.17080043,146.44,146.37,13.6636]
[1723508219789,6.362,146.45,146.4,5.4642]
[1723508220089,6.362,146.45,146.41,5.464]
[1723508220294,5.4617,146.48,146.43,5.463]
[1723508220474,5.4623,146.46,146.41,5.4638]
[1723508220674,1.83267611,146.45,146.37,5.4655]
[1723508220892,0.12549,146.43,146.28,6.4703]
[1723508221093,5.4656,146.37,146.32,5.4674]
[1723508221416,5.4656,146.37,146.28,5.4688]
[1723508221417,5.467,146.34,146.28,5.4688]
[1723508221600,16.4648,146.36,146.27,0.8276605]
[1723508221756,16.4648,146.36,146.3,13.6699]
[1723508221959,16.4648,146.36,146.33,5.467]
[1723508222162,16.4648,146.36,146.32,19.1354]
[1723508222385,45.0,146.35,146.28,27.3445]
[1723508222808,16.4648,146.36,146.28,27.3445]
[1723508223179,16.4648,146.36,146.31,13.6689]
[1723508223596,16.4648,146.36,146.31,19.1364]
[1723508224107,16.4648,146.36,146.34,5.4666]
[1723508224492,21.6199,146.4,146.35,5.4663]
[1723508224797,45.0,146.39,146.35,5.4663]
[1723508225278,21.6199,146.4,146.35,5.4663]
[1723508225478,21.6199,146.4,146.33,13.667]
[1723508225479,16.1554,146.4,146.36,5.4658]
[1723508225800,15.60500619,146.5,146.41,5.464]
[1723508225801,16.3573,146.45,146.41,5.464]
[1723508226171,21.8184,146.49,146.41,13.6597]
[1723508226374,16.3573,146.49,146.44,5.4629]
[1723508226615,16.3573,146.49,146.43,13.6577]
[1723508226778,5.4615,146.48,146.43,19.1208]
[1723508226980,16.3573,146.49,146.43,19.1208]
[1723508227392,5.4615,146.48,146.43,19.1208]
[1723508227580,21.8184,146.49,146.43,19.1208]
[1723508227780,16.3573,146.49,146.43,13.6577]
[1723508227978,16.3573,146.49,146.46,5.4621]
[1723508228590,21.8186,146.49,146.44,5.4628]
[1723508229881,16.3573,146.49,146.42,13.659]
[1723508230080,45.0,146.48,146.42,13.659]
[1723508230587,5.4621,146.47,146.42,19.1226]
[1723508230789,16.3573,146.49,146.42,13.659]
[1723508230991,16.3573,146.49,146.44,5.4629]
[1723508231290,21.8185,146.49,146.43,5.4632]
[1723508231915,5.4617,146.48,146.42,13.659]
[1723508232115,5.4617,146.48,146.36,66.5794]
[1723508232116,5.4626,146.45,146.39,13.6617]
[1723508232278,7.17025084,146.44,146.39,13.6617]
[1723508232479,0.12549,146.43,146.35,13.6653]
[1723508232794,5.4645,146.4,146.35,13.6653]
[1723508232990,0.12549,146.38,146.33,5.467]
[1723508233309,16.18419,146.41,146.34,5.4665]
[1723508233514,16.18419,146.41,146.33,13.667]
[1723508233515,45.12549,146.4,146.33,13.667]
[1723508233692,0.12549,146.38,146.33,13.667]
[1723508234080,5.4663,146.35,146.3,13.6702]
[1723508234292,0.12549,146.36,146.3,13.6702]
[1723508234514,0.12549,146.35,146.28,5.4689]
[1723508234677,5.467,146.34,146.28,5.4689]
[1723508234882,5.71738,146.35,146.29,5.4684]
[1723508235095,45.0,146.34,146.3,5.4681]
[1723508235316,0.25098,146.35,146.27,0.8276605]
[1723508235317,45.0,146.37,146.33,5.4668]
[1723508235683,5.58999,146.4,146.35,5.4661]
[1723508235892,45.12549,146.39,146.35,5.4661]
[1723508236101,16.0587,146.41,146.37,5.4652]
[1723508236910,16.0587,146.41,146.36,13.6641]
[1723508237292,23.23062611,146.41,146.36,13.6641]
[1723508237483,16.0587,146.41,146.36,13.6641]
[1723508237895,6.2497,146.42,146.36,13.6641]
[1723508238198,16.0587,146.45,146.38,13.6622]
[1723508238797,21.5213,146.45,146.39,5.4645]
[1723508239216,0.12549,146.44,146.33,6.598]
[1723508239427,5.4639,146.42,146.36,5.4656]
[1723508239631,5.4639,146.42,146.35,13.6656]
[1723508239632,5.4634,146.43,146.37,5.4654]
[1723508239829,0.25098,146.44,146.39,5.4645]
[1723508240125,16.0587,146.45,146.41,5.4637]
[1723508240721,16.0587,146.45,146.4,5.4644]
[1723508241696,21.5214,146.45,146.4,5.4644]
[1723508242023,21.5214,146.45,146.37,5.4653]
[1723508242024,0.12549,146.44,146.37,5.4653]